fUST/lending_fUST_20250525
["ID","MTS","AMOUNT","RATE_DAILY","PERIOD"]
[362223326,1748112638671,-475.35,0.00022739,2]
[362223327,1748112638681,-430.0,0.00022739,2]
[362223328,1748112638691,-430.0,0.00022739,2]
[362223329,1748112638701,-430.0,0.00022739,2]
[362223330,1748112638710,-430.0,0.00022739,2]
[362223331,1748112638719,-430.0,0.00022739,2]
[362223332,1748112638728,-430.0,0.00022739,2]
[362223333,1748112638738,-230.36,0.00022739,2]
[362223334,1748112638747,-430.0,0.00022739,2]
[362223335,1748112638756,-490.0,0.00022739,2]
[362223336,1748112638766,-430.0,0.00022739,2]
[362223337,1748112638775,-430.0,0.00022739,2]
[362223338,1748112638784,-430.0,0.00022739,2]
[362223339,1748112638794,-364.2,0.00022739,2]
[362223340,1748112638807,-430.0,0.00022739,2]
[362223341,1748112638823,-636.79,0.00022739,2]
[362223342,1748112638837,-443.77,0.00022739,2]
[362223343,1748112638851,-430.0,0.00022739,2]
[362223344,1748112638863,-617.24,0.00022739,2]
[362223345,1748112638877,-1286.53,0.00022739,2]
[362223346,1748112638890,-817.44,0.00022739,2]
[362223347,1748112638903,-175.71,0.00022739,2]
[362223348,1748112638916,-430.0,0.00022739,2]
[362223349,1748112638930,-430.0,0.00022739,2]
[362223350,1748112638943,-430.0,0.00022739,2]
[362223351,1748112638956,-460.0,0.00022739,2]
[362223352,1748112638969,-764.4,0.00022739,2]
[362223353,1748112638982,-430.0,0.00022739,2]
[362223354,1748112638995,-3104.78,0.00022739,2]
[362223355,1748112639008,-430.0,0.00022739,2]
[362223356,1748112639020,-1170.54,0.00022739,2]
[362223357,1748112639034,-880.71,0.00022739,2]
[362223358,1748112639048,-430.0,0.00022739,2]
[362223359,1748112639061,-1000.0,0.00022842,2]
[362223360,1748112639072,-473.29841553,0.00022842,2]
[362223361,1748112639084,-500.0,0.00022842,2]
[362223362,1748112639096,-779.8,0.00023012,2]
[362223363,1748112639109,-1985.59,0.00023012,2]
[362223364,1748112639123,-430.0,0.00023013,2]
[362223365,1748112639137,-430.0,0.00023013,2]
[362223366,1748112639150,-430.0,0.00023013,2]
[362223367,1748112639164,-430.0,0.00023013,2]
[362223368,1748112639178,-430.0,0.00023013,2]
[362223369,1748112639191,-470.42,0.00023013,2]
[362223370,1748112639205,-182.16,0.00023013,2]
[362223371,1748112639215,-430.0,0.00023013,2]
[362223372,1748112639226,-2148.94,0.00023013,2]
[362223373,1748112639236,-752.46,0.00023013,2]
[362223374,1748112639249,-430.0,0.00023013,2]
[362223375,1748112639264,-1547.16,0.00023013,2]
[362223376,1748112639279,-430.0,0.00023013,2]
[362223377,1748112639291,-430.0,0.00023013,2]
[362223378,1748112639302,-558.08,0.00023013,2]
[362223379,1748112639314,-475.35,0.00023013,2]
[362223380,1748112639327,-430.0,0.00023013,2]
[362223381,1748112639339,-430.0,0.00023013,2]
[362223382,1748112639350,-430.0,0.00023013,2]
[362223383,1748112639360,-430.0,0.00023013,2]
[362223384,1748112639371,-430.0,0.00023013,2]
[362223385,1748112639383,-404.88,0.00023013,2]
[362223386,1748112639394,-430.0,0.00023013,2]
[362223387,1748112639407,-430.0,0.00023013,2]
[362223388,1748112639419,-430.0,0.00023013,2]
[362223389,1748112639431,-430.0,0.00023013,2]
[362223390,1748112639442,-430.0,0.00023013,2]
[362223391,1748112639454,-636.79,0.00023013,2]
[362223392,1748112639466,-443.77,0.00023013,2]
[362223393,1748112639477,-430.0,0.00023013,2]
[362223394,1748112639489,-617.24,0.00023013,2]
[362223395,1748112639500,-1286.53,0.00023013,2]
[362223396,1748112639512,-817.44,0.00023013,2]
[362223397,1748112639524,-430.0,0.00023013,2]
[362223398,1748112639536,-430.0,0.00023013,2]
[362223399,1748112639548,-430.0,0.00023013,2]
[362223400,1748112639559,-764.4,0.00023013,2]
[362223401,1748112639570,-430.0,0.00023013,2]
[362223402,1748112639583,-3104.78,0.00023013,2]
[362223403,1748112639593,-430.0,0.00023013,2]
[362223404,1748112639604,-1170.54,0.00023013,2]
[362223405,1748112639615,-880.71,0.00023013,2]
[362223406,1748112639627,-430.0,0.00023013,2]
[362223407,1748112639638,-1000.0,0.0002316,2]
[362223408,1748112639649,-168.451949,0.00023182,2]
[362223409,1748112639660,-500.0,0.00023286,2]
[362223410,1748112639671,-500.0,0.00023286,2]
[362223411,1748112639682,-500.0,0.00023286,2]
[362223412,1748112639693,-156.6457627,0.00023286,2]
[362223413,1748112639704,-381.96806346,0.00023286,2]
[362223414,1748112639714,-500.0,0.00023286,2]
[362223415,1748112639725,-500.0,0.00023286,2]
[362223416,1748112639737,-500.0,0.00023286,2]
[362223417,1748112639748,-500.0,0.00023286,2]
[362223418,1748112639759,-353.76906749,0.00023286,2]
[362223419,1748112639771,-500.0,0.00023286,2]
[362223420,1748112639782,-500.0,0.00023286,2]
[362223421,1748112639793,-500.0,0.00023286,2]
[362223422,1748112639805,-500.0,0.00023286,2]
[362223423,1748112639816,-500.0,0.00023286,2]
[362223424,1748112639828,-430.0,0.00023287,2]
[362223425,1748112639840,-430.0,0.00023287,2]
[362223426,1748112639851,-430.0,0.00023287,2]
[362223427,1748112639863,-430.0,0.00023287,2]
[362223428,1748112639874,-470.42,0.00023287,2]
[362223429,1748112639886,-430.0,0.00023287,2]
[362223430,1748112639897,-2148.94,0.00023287,2]
[362223431,1748112639909,-752.46,0.00023287,2]
[362223432,1748112639920,-430.0,0.00023287,2]
[362223433,1748112639932,-1547.16,0.00023287,2]
[362223434,1748112639943,-199.47,0.00023287,2]
[362223435,1748112640084,-430.0,0.00023287,2]
[362223436,1748112640101,-558.08,0.00023287,2]
[362223437,1748112640111,-475.35,0.00023287,2]
[362223438,1748112640120,-430.0,0.00023287,2]
[362223439,1748112640129,-430.0,0.00023287,2]
[362223440,1748112640139,-430.0,0.00023287,2]
[362223441,1748112640148,-430.0,0.00023287,2]
[362223442,1748112640158,-430.0,0.00023287,2]
[362223443,1748112640168,-430.0,0.00023287,2]
[362223444,1748112640178,-430.0,0.00023287,2]
[362223445,1748112640187,-430.0,0.00023287,2]
[362223446,1748112640197,-430.0,0.00023287,2]
[362223447,1748112640206,-430.0,0.00023287,2]
[362223448,1748112640215,-636.79,0.00023287,2]
[362223449,1748112640225,-443.77,0.00023287,2]
[362223450,1748112640234,-430.0,0.00023287,2]
[362223451,1748112640244,-617.24,0.00023287,2]
[362223452,1748112640253,-1286.53,0.00023287,2]
[362223453,1748112640262,-817.44,0.00023287,2]
[362223454,1748112640271,-246.37,0.00023287,2]
[362223455,1748112640281,-430.0,0.00023287,2]
[362223456,1748112640291,-430.0,0.00023287,2]
[362223457,1748112640300,-764.4,0.00023287,2]
[362223458,1748112640310,-430.0,0.00023287,2]
[362223459,1748112640319,-3104.78,0.00023287,2]
[362223460,1748112640329,-430.0,0.00023287,2]
[362223461,1748112640339,-1170.54,0.00023287,2]
[362223462,1748112640348,-880.71,0.00023287,2]
[362223463,1748112640358,-430.0,0.00023287,2]
[362223464,1748112640367,-500.0,0.0002339,2]
[362223465,1748112640378,-636.0,0.000234,2]
[362223466,1748112640387,-207.4,0.00023504,2]
[362223467,1748112640396,-960.0,0.00023527,2]
[362223468,1748112640406,-711.797,0.00023527,2]
[362223470,1748112640416,-2234.0,0.00023527,2]
[362223471,1748112640426,-779.8,0.0002356,2]
[362223472,1748112640436,-1985.59,0.0002356,2]
[362223473,1748112640444,-430.0,0.00023561,2]
[362223474,1748112640454,-267.27,0.00023561,2]
[362223475,1748112640463,-430.0,0.00023561,2]
[362223476,1748112640472,-430.0,0.00023561,2]
[362223478,1748112640482,-470.42,0.00023561,2]
[362223479,1748112640492,-430.0,0.00023561,2]
[362223480,1748112640506,-2148.94,0.00023561,2]
[362223481,1748112640516,-752.46,0.00023561,2]
[362223482,1748112640527,-555.57,0.00023561,2]
[362223483,1748112640538,-1547.16,0.00023561,2]
[362223484,1748112640551,-430.0,0.00023561,2]
[362223485,1748112640562,-558.08,0.00023561,2]
[362223486,1748112640575,-475.35,0.00023561,2]
[362223487,1748112640585,-430.0,0.00023561,2]
[362223488,1748112640595,-430.0,0.00023561,2]
[362223489,1748112640604,-430.0,0.00023561,2]
[362223490,1748112640613,-430.0,0.00023561,2]
[362223491,1748112640622,-430.0,0.00023561,2]
[362223492,1748112640631,-430.0,0.00023561,2]
[362223493,1748112640640,-430.0,0.00023561,2]
[362223494,1748112640649,-430.0,0.00023561,2]
[362223495,1748112640659,-430.0,0.00023561,2]
[362223496,1748112640668,-430.0,0.00023561,2]
[362223497,1748112640678,-636.79,0.00023561,2]
[362223498,1748112640687,-443.77,0.00023561,2]
[362223499,1748112640696,-430.0,0.00023561,2]
[362223500,1748112640705,-617.24,0.00023561,2]
[362223501,1748112640715,-1286.53,0.00023561,2]
[362223502,1748112640724,-817.44,0.00023561,2]
[362223503,1748112640734,-430.0,0.00023561,2]
[362223504,1748112640743,-430.0,0.00023561,2]
[362223505,1748112640752,-764.4,0.00023561,2]
[362223506,1748112640761,-430.0,0.00023561,2]
[362223507,1748112640771,-3104.78,0.00023561,2]
[362223508,1748112640780,-430.0,0.00023561,2]
[362223510,1748112640789,-1170.54,0.00023561,2]
[362223512,1748112640799,-880.71,0.00023561,2]
[362223514,1748112640808,-296.92437452,0.00023561,2]
[362223516,1748112640817,-501.30197726,0.000236,2]
[362223518,1748112640826,-160.49780129,0.00023808,2]
[362223520,1748112640835,-779.8,0.00023834,2]
[362223522,1748112640845,-1985.59,0.00023834,2]
[362223524,1748112640854,-430.0,0.00023835,2]
[362223525,1748112640863,-430.0,0.00023835,2]
[362223527,1748112640872,-430.0,0.00023835,2]
[362223529,1748112640881,-470.42,0.00023835,2]
[362223531,1748112640890,-430.0,0.00023835,2]
[362223533,1748112640900,-2148.94,0.00023835,2]
[362223535,1748112640909,-752.46,0.00023835,2]
[362223537,1748112640918,-1547.16,0.00023835,2]
[362223539,1748112640927,-430.0,0.00023835,2]
[362223541,1748112640939,-558.08,0.00023835,2]
[362223543,1748112640948,-475.35,0.00023835,2]
[362223545,1748112640957,-430.0,0.00023835,2]
[362223547,1748112640967,-430.0,0.00023835,2]
[362223549,1748112640976,-430.0,0.00023835,2]
[362223551,1748112640986,-430.0,0.00023835,2]
[362223553,1748112640995,-430.0,0.00023835,2]
[362223555,1748112641004,-430.0,0.00023835,2]
[362223557,1748112641014,-430.0,0.00023835,2]
[362223559,1748112641023,-430.0,0.00023835,2]
[362223561,1748112641032,-430.0,0.00023835,2]
[362223563,1748112641041,-430.0,0.00023835,2]
[362223565,1748112641050,-636.79,0.00023835,2]
[362223567,1748112641059,-443.77,0.00023835,2]
[362223569,1748112641069,-430.0,0.00023835,2]
[362223571,1748112641079,-617.24,0.00023835,2]
[362223573,1748112641088,-1286.53,0.00023835,2]
[362223575,1748112641098,-817.44,0.00023835,2]
[362223577,1748112641107,-430.0,0.00023835,2]
[362223579,1748112641116,-319.72,0.00023835,2]
[362223581,1748112641125,-764.4,0.00023835,2]
[362223583,1748112641134,-430.0,0.00023835,2]
[362223585,1748112641143,-3104.78,0.00023835,2]
[362223587,1748112641153,-529.88,0.00023835,2]
[362223589,1748112641162,-1170.54,0.00023835,2]
[362223591,1748112641171,-880.71,0.00023835,2]
[362223593,1748112641181,-390.0,0.0002404,9]
[362223595,1748112641190,-779.8,0.00024108,2]
[362223597,1748112641199,-1985.59,0.00024108,2]
[362223599,1748112641209,-430.0,0.00024109,2]
[362223601,1748112641218,-430.0,0.00024109,2]
[362223603,1748112641227,-430.0,0.00024109,2]
[362223605,1748112641236,-470.42,0.00024109,2]
[362223607,1748112641246,-430.0,0.00024109,2]
[362223609,1748112641255,-2148.94,0.00024109,2]
[362223611,1748112641264,-752.46,0.00024109,2]
[362223613,1748112641274,-1547.16,0.00024109,2]
[362223615,1748112641283,-430.0,0.00024109,2]
[362223617,1748112641293,-558.08,0.00024109,2]
[362223619,1748112641303,-475.35,0.00024109,2]
[362223621,1748112641312,-430.0,0.00024109,2]
[362223623,1748112641321,-430.0,0.00024109,2]
[362223625,1748112641330,-182.61,0.00024109,2]
[362223627,1748112641340,-430.0,0.00024109,2]
[362223629,1748112641349,-430.0,0.00024109,2]
[362223631,1748112641358,-430.0,0.00024109,2]
[362223633,1748112641368,-430.0,0.00024109,2]
[362223635,1748112641378,-430.0,0.00024109,2]
[362223637,1748112641389,-430.0,0.00024109,2]
[362223639,1748112641399,-430.0,0.00024109,2]
[362223641,1748112641408,-636.79,0.00024109,2]
[362223643,1748112641418,-443.77,0.00024109,2]
[362223645,1748112641427,-430.0,0.00024109,2]
[362223647,1748112641436,-617.24,0.00024109,2]
[362223649,1748112641446,-1286.53,0.00024109,2]
[362223651,1748112641455,-817.44,0.00024109,2]
[362223653,1748112641464,-430.0,0.00024109,2]
[362223655,1748112641474,-764.4,0.00024109,2]
[362223657,1748112641483,-430.0,0.00024109,2]
[362223659,1748112641495,-3104.78,0.00024109,2]
[362223661,1748112641504,-1170.54,0.00024109,2]
[362223663,1748112641513,-880.71,0.00024109,2]
[362223665,1748112641523,-160.49780129,0.00024137,2]
[362223667,1748112641535,-1000.0,0.00024256,2]
[362223669,1748112641545,-157.309858,0.00024271,2]
[362223671,1748112641554,-880.408548,0.00024303,2]
[362223673,1748112641563,-779.8,0.00024382,2]
[362223675,1748112641575,-1985.59,0.00024382,2]
[362223677,1748112641584,-430.0,0.00024383,2]
[362223679,1748112641595,-430.0,0.00024383,2]
[362223681,1748112641604,-430.0,0.00024383,2]
[362223683,1748112641615,-470.42,0.00024383,2]
[362223685,1748112641625,-430.0,0.00024383,2]
[362223687,1748112641633,-2148.94,0.00024383,2]
[362223689,1748112641643,-752.46,0.00024383,2]
[362223691,1748112641652,-1547.16,0.00024383,2]
[362223693,1748112641661,-430.0,0.00024383,2]
[362223695,1748112641670,-558.08,0.00024383,2]
[362223697,1748112641680,-475.35,0.00024383,2]
[362223699,1748112641690,-430.0,0.00024383,2]
[362223701,1748112641699,-522.36,0.00024383,2]
[362223704,1748112641708,-430.0,0.00024383,2]
[362223706,1748112641718,-463.28,0.00024383,2]
[362223707,1748112641728,-430.0,0.00024383,2]
[362223710,1748112641737,-492.7,0.00024383,2]
[362223712,1748112641747,-430.0,0.00024383,2]
[362223714,1748112641756,-430.0,0.00024383,2]
[362223715,1748112641765,-430.0,0.00024383,2]
[362223718,1748112641775,-636.79,0.00024383,2]
[362223720,1748112641784,-443.77,0.00024383,2]
[362223722,1748112641793,-430.0,0.00024383,2]
[362223724,1748112641803,-617.24,0.00024383,2]
[362223726,1748112641812,-1286.53,0.00024383,2]
[362223728,1748112641822,-817.44,0.00024383,2]
[362223730,1748112641832,-430.0,0.00024383,2]
[362223731,1748112641843,-764.4,0.00024383,2]
[362223733,1748112641853,-430.0,0.00024383,2]
[362223736,1748112641863,-3104.78,0.00024383,2]
[362223738,1748112641872,-1170.54,0.00024383,2]
[362223740,1748112641881,-880.71,0.00024383,2]
[362223742,1748112641890,-157.309858,0.000245,30]
[362223744,1748112641900,-157.309858,0.000245,7]
[362223746,1748112641909,-800.0,0.00024638,2]
[362223748,1748112641918,-800.0,0.00024655,2]
[362223750,1748112641927,-430.0,0.00024657,2]
[362223752,1748112641937,-430.0,0.00024657,2]
[362223754,1748112641946,-430.0,0.00024657,2]
[362223756,1748112641956,-470.42,0.00024657,2]
[362223758,1748112641965,-430.0,0.00024657,2]
[362223760,1748112641974,-2148.94,0.00024657,2]
[362223762,1748112641983,-752.46,0.00024657,2]
[362223764,1748112641992,-1547.16,0.00024657,2]
[362223766,1748112642002,-430.0,0.00024657,2]
[362223768,1748112642011,-558.08,0.00024657,2]
[362223770,1748112642021,-475.35,0.00024657,2]
[362223771,1748112642030,-430.0,0.00024657,2]
[362223773,1748112642039,-430.0,0.00024657,2]
[362223775,1748112642048,-430.0,0.00024657,2]
[362223777,1748112642058,-430.0,0.00024657,2]
[362223780,1748112642070,-430.0,0.00024657,2]
[362223782,1748112642079,-499.83,0.00024657,2]
[362223784,1748112642089,-636.79,0.00024657,2]
[362223786,1748112642098,-443.77,0.00024657,2]
[362223788,1748112642108,-430.0,0.00024657,2]
[362223790,1748112642117,-617.24,0.00024657,2]
[362223792,1748112642126,-1286.53,0.00024657,2]
[362223794,1748112642135,-817.44,0.00024657,2]
[362223796,1748112642146,-430.0,0.00024657,2]
[362223798,1748112642156,-764.4,0.00024657,2]
[362223800,1748112642165,-430.0,0.00024657,2]
[362223802,1748112642175,-3104.78,0.00024657,2]
[362223804,1748112642184,-1620.18,0.00024657,4]
[362223805,1748112642194,-1170.54,0.00024657,2]
[362223807,1748112642204,-218.1688,0.00024657,7]
[362223809,1748112642214,-880.71,0.00024657,2]
[362223811,1748112642223,-800.0,0.00024662,2]
[362223813,1748112642232,-324.32824355,0.00024677,2]
[362223816,1748112642242,-800.0,0.00024686,2]
[362223817,1748112642251,-800.0,0.00024704,2]
[362223819,1748112642260,-800.0,0.00024713,2]
[362223821,1748112642269,-800.0,0.00024715,2]
[362223823,1748112642279,-800.0,0.00024746,2]
[362223825,1748112642289,-800.0,0.00024751,2]
[362223827,1748112642298,-800.0,0.00024754,2]
[362223829,1748112642307,-800.0,0.00024761,2]
[362223831,1748112642317,-800.0,0.00024769,2]
[362223834,1748112642326,-800.0,0.00024769,2]
[362223836,1748112642336,-500.0,0.00024773,2]
[362223837,1748112642347,-500.0,0.00024773,2]
[362223840,1748112642356,-500.0,0.00024773,2]
[362223842,1748112642365,-500.0,0.00024773,2]
[362223844,1748112642375,-3003.68749252,0.00024788,2]
[362223846,1748112642384,-779.8,0.00024797,2]
[362223848,1748112642394,-1985.59,0.00024797,2]
[362223860,1748112642498,-3546.451264,0.00024799,2]
[362223862,1748112642509,-779.8,0.00024799,2]
[362223864,1748112642519,-779.8,0.00024799,2]
[362223866,1748112642529,-779.8,0.00024799,2]
[362223868,1748112642540,-779.8,0.00024799,2]
[362223870,1748112642549,-779.8,0.00024799,2]
[362223872,1748112642558,-779.95,0.00024799,2]
[362223874,1748112642568,-1985.59,0.00024799,2]
[362223876,1748112642578,-1985.59,0.00024799,2]
[362223878,1748112642587,-1985.59,0.00024799,2]
[362223879,1748112642597,-1985.59,0.00024799,2]
[362223882,1748112642606,-1985.59,0.00024799,2]
[362223883,1748112642615,-1985.82851663,0.00024799,2]
[362223886,1748112642624,-1064.147881,0.00024799,2]
[362223888,1748112642633,-1064.147881,0.00024799,2]
[362223890,1748112642643,-151.0,0.00024799,7]
[362223892,1748112642652,-222941.26072852,0.000248,7]
[362223894,1748112642662,-151.0,0.000248,2]
[362223896,1748112642671,-99385.77119623,0.000248,7]
[362223933,1748112643021,-490.0,0.00021917,2]
[362223935,1748112643031,-430.0,0.00021917,2]
[362223937,1748112643041,-214.63467896,0.00021917,2]
[362223939,1748112643051,-430.0,0.00021917,2]
[362223941,1748112643060,-430.0,0.00022191,2]
[362223943,1748112643073,-430.0,0.00022191,2]
[362223945,1748112643083,-377.01576669,0.00022465,2]
[362223947,1748112643093,-430.0,0.00022465,2]
[362223950,1748112643104,-430.0,0.00022739,2]
[362223952,1748112643118,-430.0,0.00023013,2]
[362223953,1748112643127,-32002.30720957,0.000248,7]
[362224054,1748112644198,-430.0,0.00021917,2]
[362224056,1748112644208,-430.0,0.00021917,2]
[362224059,1748112644217,-430.0,0.00021917,2]
[362224061,1748112644227,-430.0,0.00022191,2]
[362224063,1748112644237,-143.66178046,0.00022191,2]
[362224065,1748112644250,-286.33821954,0.00022191,2]
[362224067,1748112644260,-430.0,0.00022191,2]
[362224069,1748112644269,-430.0,0.00022465,2]
[362224071,1748112644279,-430.0,0.00022465,2]
[362224073,1748112644288,-430.0,0.00022465,2]
[362224075,1748112644298,-430.0,0.00022739,2]
[362224077,1748112644307,-514.83,0.00022739,2]
[362224079,1748112644317,-430.0,0.00023013,2]
[362224082,1748112644327,-414.1,0.00023287,2]
[362224084,1748112644336,-430.0,0.00023287,2]
[362224086,1748112644346,-430.0,0.00023561,2]
[362224088,1748112644355,-430.0,0.00023835,2]
[362224090,1748112644365,-23118.50975616,0.000248,7]
[362224093,1748112644377,-352846.49183804,0.000248,7]
[362224095,1748112644386,-151.0,0.000248,7]
[362224097,1748112644395,-151.0,0.000248,7]
[362224099,1748112644405,-151.0,0.000248,7]
[362224101,1748112644414,-151.0,0.000248,7]
[362224103,1748112644423,-70828.5065698,0.000248,2]
[362224105,1748112644432,-151.0,0.000248,7]
[362224107,1748112644442,-151.0,0.000248,7]
[362224109,1748112644451,-151.0,0.000248,7]
[362224111,1748112644461,-151.0,0.000248,7]
[362224113,1748112644471,-245.775884,0.000248,7]
[362224115,1748112644480,-245.775884,0.000248,7]
[362224117,1748112644490,-245.775884,0.000248,7]
[362224119,1748112644499,-245.775884,0.000248,7]
[362224121,1748112644509,-200.986536,0.000248,7]
[362224123,1748112644518,-200.986536,0.000248,7]
[362224125,1748112644528,-200.986536,0.000248,7]
[362224126,1748112644540,-200.986536,0.000248,7]
[362224128,1748112644549,-151.0,0.000248,7]
[362224131,1748112644559,-151.0,0.000248,7]
[362224133,1748112644568,-1064.147881,0.000248,2]
[362224135,1748112644578,-1064.147881,0.000248,2]
[362224137,1748112644588,-1064.147881,0.000248,2]
[362224139,1748112644599,-1064.147881,0.000248,2]
[362224141,1748112644609,-152.781196,0.000248,7]
[362224143,1748112644618,-229.12393663,0.000248,7]
[362224145,1748112644630,-151.0,0.000248,2]
[362224147,1748112644640,-885.61193731,0.00024817,2]
[362224149,1748112644649,-740.89475606,0.00024824,3]
[362224151,1748112644659,-800.0,0.00024826,2]
[362224153,1748112644668,-160.0,0.00024842,2]
[362224155,1748112644678,-250606.32569577,0.00024843,2]
[362224157,1748112644688,-151.0,0.00024843,7]
[362224159,1748112644698,-151.0,0.00024843,7]
[362224161,1748112644707,-151.0,0.00024843,7]
[362224163,1748112644716,-151.0,0.00024843,7]
[362224165,1748112644726,-245.775884,0.00024843,7]
[362224167,1748112644736,-245.775884,0.00024843,7]
[362224169,1748112644746,-200.986536,0.00024843,7]
[362224171,1748112644755,-200.986536,0.00024843,7]
[362224173,1748112644764,-151.0,0.00024843,7]
[362224175,1748112644774,-1064.147881,0.00024843,2]
[362224177,1748112644783,-1064.147881,0.00024843,2]
[362224179,1748112644793,-800.0,0.00024844,2]
[362224181,1748112644804,-200.0,0.00024845,120]
[362224184,1748112644814,-800.0,0.00024854,2]
[362224186,1748112644824,-200.0,0.00024858,120]
[362224188,1748112644834,-800.0,0.00024871,2]
[362224189,1748112644843,-160.0,0.00024872,2]
[362224192,1748112644854,-501.48329885,0.00024873,2]
[362224193,1748112644864,-500.0,0.00024873,2]
[362224195,1748112644874,-500.0,0.00024873,2]
[362224197,1748112644883,-500.0,0.00024873,2]
[362224199,1748112644893,-500.0,0.00024873,2]
[362224202,1748112644902,-500.0,0.00024873,2]
[362224204,1748112644912,-500.0,0.00024873,2]
[362224206,1748112644923,-500.0,0.00024873,2]
[362224208,1748112644933,-500.0,0.00024873,2]
[362224210,1748112644943,-500.0,0.00024873,2]
[362224212,1748112644952,-500.0,0.00024873,2]
[362224214,1748112644961,-629.08419203,0.00024873,2]
[362224216,1748112644970,-525.07549888,0.00024873,2]
[362224218,1748112644979,-500.0,0.00024873,2]
[362224220,1748112644989,-500.0,0.00024873,2]
[362224222,1748112644998,-500.0,0.00024873,2]
[362224224,1748112645007,-500.0,0.00024873,2]
[362224226,1748112645016,-500.0,0.00024873,2]
[362224228,1748112645026,-500.20828446,0.00024873,2]
[362224230,1748112645036,-600.0,0.00024873,2]
[362224232,1748112645045,-500.0,0.00024873,2]
[362224234,1748112645055,-500.0,0.00024873,2]
[362224236,1748112645064,-500.0,0.00024873,2]
[362224238,1748112645073,-500.0,0.00024873,2]
[362224240,1748112645083,-500.0,0.00024873,2]
[362224242,1748112645092,-500.0,0.00024873,2]
[362224244,1748112645101,-500.0,0.00024873,2]
[362224246,1748112645111,-500.0,0.00024873,2]
[362224248,1748112645120,-500.0,0.00024873,2]
[362224250,1748112645130,-500.0,0.00024873,2]
[362224252,1748112645140,-500.0,0.00024873,2]
[362224254,1748112645149,-500.0,0.00024873,2]
[362224256,1748112645158,-500.0,0.00024873,2]
[362224258,1748112645168,-500.0,0.00024873,2]
[362224260,1748112645177,-500.0,0.00024873,2]
[362224262,1748112645186,-500.0,0.00024873,2]
[362224264,1748112645196,-500.0,0.00024873,2]
[362224266,1748112645205,-500.0,0.00024873,2]
[362224268,1748112645215,-500.0,0.00024873,2]
[362224270,1748112645224,-500.0,0.00024873,2]
[362224272,1748112645233,-500.0,0.00024873,2]
[362224274,1748112645245,-239.39929938,0.00024873,2]
[362224276,1748112645254,-215.0738,0.00024873,2]
[362224278,1748112645264,-200.0,0.00024882,120]
[362224280,1748112645273,-160.0,0.00024887,2]
[362224282,1748112645283,-160.0,0.00024887,2]
[362224284,1748112645293,-160.0,0.00024887,2]
[362224286,1748112645302,-3003.68749246,0.00024888,2]
[362224288,1748112645312,-73910.51375708,0.00024888,2]
[362224290,1748112645321,-2383.19094013,0.00024888,3]
[362224292,1748112645331,-207345.04983791,0.00024888,2]
[362224295,1748112645340,-151.0,0.00024888,7]